Cogmind - Beta 14 *** ADVENTURER MODE // 2024.08.09 @ 21:06:53 Player: Plaidstone Result: Destroyed by CH-6IX(R) with Subdweller Shrapnel Launcher Performance ------------- Evolutions (0) 0 Regions Visited (3) 600 Robots Destroyed (29) 145 Value Destroyed (673) 673 Prototype IDs (6) 120 Alien Tech Used (0) 0 Bonus (0) 0 TOTAL SCORE: 1538 Bonus ------- None Cogmind --------- Core Integrity 0/250 Matter 300/300 Energy 78/100 System Corruption 4% Temperature Cool (0) Movement Rolling (110) Location -10/Subcaves Parts ------- > --- POWER (1) -------- (None) > --- PROPULSION (2) --- Subdweller Monowheel > --- UTILITY (2) ------ Small Storage Unit Experimental Sensor Array > --- WEAPON (2) ------- Flail Makeshift Hammer > --- INVENTORY (8) ---- Improved Heat Sink Sensor Drone Bay (16/20) Heavy Battle Rifle Rocket Launcher Flail Flail Flail Peak State ------------ > --- POWER ------------ (None) > --- PROPULSION ------- Subdweller Monowheel Subdweller Monowheel > --- UTILITY ---------- Small Storage Unit Experimental Sensor Array > --- WEAPON ----------- Flail Makeshift Hammer > --- INVENTORY -------- Improved Heat Sink Sensor Drone Bay Heavy Battle Rifle Rocket Launcher Flail Flail Flail [Rating: 22] Favorites ----------- Power Light Ion Engine Engine Light Ion Engine Propulsion Aluminum Leg Leg Aluminum Leg Wheel Subdweller Monowheel Hover Unit Hover Unit Utility Small Storage Unit Device Sensor Drone Bay Storage Small Storage Unit Processor Signal Interpreter Weapon Flail Energy Gun Small Laser Ballistic Gun Assault Rifle Impact Weapon Flail Build | -11 -10 -10 -10 ------- Run | Yrd Mat Min Sub Slots Evolved . | . . . . Power . | . . . . Propulsion . | . . . . Utility . | . . . . Weapon . | . . . . Parts Attached 34 | 6 16 5 7 Power 5 | 1 2 2 . Engine 5 | 1 2 2 . Core . | . . . . Reactor . | . . . . Propulsion 13 | 2 6 2 3 Treads . | . . . . Leg 6 | 2 2 2 . Wheel 3 | . . . 3 Hover 4 | . 4 . . Flight . | . . . . Utility 6 | 1 3 1 1 Device 3 | . 1 1 1 Storage 2 | 1 1 . . Processor 1 | . 1 . . Hackware . | . . . . Protection . | . . . . Artifact . | . . . . Weapon 10 | 2 5 . 3 Energy Gun 1 | 1 . . . Energy Cannon . | . . . . Ballistic Gun 4 | 1 3 . . Ballistic Cannon . | . . . . Launcher . | . . . . Special Weapon . | . . . . Impact Weapon 5 | . 2 . 3 Slashing Weapon . | . . . . Piercing Weapon . | . . . . Special Melee Weapon . | . . . . Unidentified Prototypes 2 | . . 1 1 Corrupted Parts 1 | . . . 1 System Corruption 3 | . . . 3 Parts Lost 7 | . 3 2 2 Power 2 | . 1 . 1 Propulsion 5 | . 2 2 1 Utility . | . . . . Weapon . | . . . . Highest Loss Streak 2 | . 2 2 2 To Critical Strikes . | . . . . Average Slot Usage (%) 96 | . 92 100 97 Engine 13 | . 14 14 13 Leg 10 | . 8 9 13 Wheel 3 | . . . 14 Hover 12 | . 14 18 . Device 9 | . 3 10 12 Storage 12 | . 9 14 14 Processor 5 | . 12 3 . Energy Gun 2 | . 8 . . Ballistic Gun 2 | . 8 . . Impact Weapon 22 | . 11 28 27 Peak Build Rating 22 | 6 12 20 22 Average Rating 11 | 5 8 16 19 On Entrance 9 | . 6 10 20 Naked Turns . | . . . . Heaviest Build 26 | 13 13 26 26 Greatest Support 40 | 20 26 26 40 Greatest Overweight (x) 3 | 1 3 2 . Average Overweight (x) . | . . . . Largest Inventory Capacity 8 | 8 8 8 8 Average Capacity 7 | 7 7 8 8 Most Carried 8 | 5 8 8 8 Average Carried 5 | 2 6 7 6 Final Capacity 8 | 8 8 8 8 Final Carried 7 | 2 7 6 7 Class Distribution -------------------- 96% | Mutant 3% | Scavenger-Mutant Dominant Class ---------------- Mutant | -10/Materials Mutant | -10/Mines Mutant | -10/Subcaves Resources | -11 -10 -10 -10 ----------- Run | Yrd Mat Min Sub Matter Collected 626 | 145 350 57 74 Remotely . | . . . . Salvage Created 945 | . 712 92 141 Parts 47 | . 36 3 8 Haulers Intercepted 2 | . 2 . . Recyclers Shooed 2 | . 2 . . Parts Field Recycled . | . . . . Retrieved Matter . | . . . . Parts Self-Destructed 5 | . . . 5 Prevented . | . . . . Kills | -11 -10 -10 -10 ------- Run | Yrd Mat Min Sub Combat Hostiles Destroyed 20 | . 11 5 4 Melee 8 | . 2 4 2 Guns 7 | . 7 . . Classes Destroyed 7 | . 6 . 1 Builder 2 | . 2 . . Hauler 2 | . 2 . . Recycler 2 | . 2 . . Watcher 3 | . 3 . . Swarmer 6 | . 3 3 . Grunt 10 | . 8 2 . Subdweller 4 | . . . 4 Best Kill Streak 4 | . 4 3 2 Combat Bots Only 3 | . 3 3 2 Max Kills in Single Turn 2 | . 2 1 1 Gunslinging 1 | . 1 . . Exploded . | . . . . Melee 1 | . 1 1 1 Uniques/NPCs Destroyed . | . . . . Combat | -11 -10 -10 -10 -------- Run | Yrd Mat Min Sub Hostile Shots Fired 111 | 1 48 22 40 Missed 33 | 1 10 8 14 Damage Taken 1055 | 30 358 120 547 Core 261 | . 116 18 127 Absorbed by Shields . | . . . . Ignored by Resistances 308 | 8 113 39 148 Core Remaining (%) 100 | 100 . . . Volleys Fired 45 | . 45 . . Largest 2 | . 2 . . Hottest 60 | . 60 . . Shots Fired 90 | . 90 . . Gun 90 | . 90 . . Cannon . | . . . . Launcher . | . . . . Special . | . . . . Kinetic 45 | . 45 . . Thermal 45 | . 45 . . Explosive . | . . . . Electromagnetic . | . . . . Robot Hit Streak 19 | . 19 . . Robot Miss Streak 3 | . 3 . . Penetration Max . | . . . . Secondary Targets 2 | . 2 . . Max Gunslinging Chain 1 | . 1 . . Shots Hit Robots 109 | . 85 14 10 Core Hits 36 | . 32 2 2 Critical Kills 3 | . 1 . 2 Critical Parts Destroyed 9 | . 4 3 2 Critical Strikes 12 | . 5 3 4 Smash 12 | . 5 3 4 Melee Attacks 56 | . 19 18 19 Impact 56 | . 19 18 19 Slashing . | . . . . Piercing . | . . . . Sneak Attacks . | . . . . Combat Hostiles . | . . . . Follow-up Attacks 3 | . 1 1 1 Damage Inflicted 2108 | . 1221 447 440 Guns 726 | . 726 . . Cannons . | . . . . Explosions . | . . . . Melee 1382 | . 495 447 440 Ramming . | . . . . Kinetic 339 | . 339 . . Thermal 387 | . 387 . . Explosive . | . . . . Electromagnetic . | . . . . Impact 1382 | . 495 447 440 Slashing . | . . . . Piercing . | . . . . Highest Corruption 4 | . 1 1 4 Average Corruption 1 | . 1 1 2 Corruption Purged . | . . . . Corruption Blocked . | . . . . Effects 18 | . 3 8 7 Message Errors 9 | . 1 3 5 Matter Fused 4 | . 1 2 1 Heat Flow Errors 1 | . 1 . . Energy Discharges 2 | . . 2 . Parts Fused 1 | . . 1 . Data Loss (major) 1 | . . . 1 Overload Shots . | . . . . Overflow Damage 383 | . 146 131 106 Projectiles . | . . . . Explosions . | . . . . Melee 383 | . 146 131 106 Knockbacks 10 | . 3 1 6 Impact 9 | . 2 1 6 Kinetic . | . . . . Secondary 1 | . 1 . . Self-Inflicted Damage . | . . . . Shots . | . . . . Rammed . | . . . . Targets Rammed . | . . . . Kicked . | . . . . Crushed . | . . . . Highest Temperature 198 | . 198 . . Average Temperature 53 | . 53 . . Received Heat Transfer 435 | . 246 66 123 Siege Activations . | . . . . Robots Corrupted 5 | . 2 1 2 Combat Hostiles 5 | . 2 1 2 Parts Fried 5 | . 1 1 3 Impact Corruptions 14 | . 5 5 4 Robots Melted . | . . . . Combat Hostiles . | . . . . Parts Melted . | . . . . Heat Transferred 875 | . 875 . . Parts Sabotaged . | . . . . Parts Stolen . | . . . . Parts Stripped . | . . . . Power Chain Reactions . | . . . . Alert | -11 -10 -10 -10 ------- Run | Yrd Mat Min Sub Peak Influence 258 | 15 258 100 . Initial 15 | . 8 15 . Average 47 | . 121 40 . Maximum Alert Level 1 | . 1 . . Low Security (%) 96 | 100 88 100 . Level 1 3 | . 11 . . Level 2 . | . . . . Level 3 . | . . . . Level 4 . | . . . . Level 5 . | . . . . High Security . | . . . . Max Security . | . . . . Squads Dispatched 3 | . 3 . . Investigation 3 | . 3 . . Extermination . | . . . . Reinforcement . | . . . . Assault . | . . . . Garrison . | . . . . Intercept . | . . . . Searches Triggered . | . . . . Construction Impeded . | . . . . Haulers Reinforced . | . . . . Active Scanning Responses . | . . . . Cargo Convoy Interrupts . | . . . . Stealth | -11 -10 -10 -10 --------- Run | Yrd Mat Min Sub Distress Signals . | . . . . Communications Jammed . | . . . . Distress Signals . | . . . . Times Spotted 32 | 2 17 6 7 Peak Tracking Total 3 | 2 3 3 2 Tactical Retreats 4 | . . 2 2 Traps | -11 -10 -10 -10 ------- Run | Yrd Mat Min Sub Traps Triggered . | . . . . Indirectly . | . . . . Trap Hack Attempts . | . . . . Triggered . | . . . . Disarmed . | . . . . Reprogrammed 4 | . 4 . . Reused 1 | . 1 . . Traps Extracted . | . . . . Installed . | . . . . Triggered 1 | . 1 . . Machines | -11 -10 -10 -10 ---------- Run | Yrd Mat Min Sub Machines Disabled . | . . . . Max in Single Turn . | . . . . Machines Repaired . | . . . . Machines Dismantled . | . . . . Machines Sabotaged . | . . . . Overloaded Fab Kills . | . . . . Hacking | -11 -10 -10 -10 --------- Run | Yrd Mat Min Sub Machines Accessed 7 | . 6 1 . Terminals 6 | . 6 . . Fabricators . | . . . . Repair Stations . | . . . . Recycling Units . | . . . . Scanalyzers . | . . . . Garrison Access . | . . . . Total Hacks 24 | . 23 1 . Successful 18 | . 17 1 . Failed 6 | . 6 . . Catastrophic . | . . . . Database Lockouts . | . . . . Manual . | . . . . Terminals 23 | . 23 . . Fabricators . | . . . . Repair Stations . | . . . . Recycling Units . | . . . . Scanalyzers . | . . . . Garrison Access . | . . . . Terminal Hacks 18 | . 17 1 . Prototype ID Bank 3 | . 3 . . Open Door 1 | . . 1 . Alert Level 5 | . 5 . . Unreport Threat 1 | . 1 . . Locate Traps 2 | . 2 . . Reprogram Traps 1 | . 1 . . Dispatch Records 2 | . 2 . . Hauler Manifests 1 | . 1 . . Registered Components 1 | . 1 . . Zone Layout 1 | . 1 . . Fabricator Hacks . | . . . . Repair Station Hacks . | . . . . Recycling Unit Hacks . | . . . . Scanalyzer . | . . . . Garrison Access Hacks . | . . . . Unauthorized Hacks . | . . . . Terminals . | . . . . Fabricators . | . . . . Repair Stations . | . . . . Recycling Units . | . . . . Scanalyzers . | . . . . Garrison Access . | . . . . Data Cores Recovered . | . . . . Used . | . . . . Hacking Detections 6 | . 6 . . Full Trace Events 3 | . 3 . . Feedback Events 1 | . 1 . . Corruption 1 | . 1 . . Feedback Blocked . | . . . . Robot Schematics Acquired . | . . . . Robots Built . | . . . . Authchips . | . . . . Time . | . . . . Total Robot Build Rating . | . . . . Part Schematics Acquired . | . . . . Parts Built . | . . . . Authchips . | . . . . Time . | . . . . Total Part Build Rating . | . . . . Parts Repaired . | . . . . Time . | . . . . Parts Recycled . | . . . . Recycled Matter . | . . . . Retrieved Matter . | . . . . Retrieved Components . | . . . . Parts Scanalyzed . | . . . . Part Schematics Acquired . | . . . . Parts Damaged . | . . . . Bothacking | -11 -10 -10 -10 ------------ Run | Yrd Mat Min Sub Used RIF Installer . | . . . . Robots Hacked . | . . . . Non-combat . | . . . . Combat . | . . . . Robot Hacks Applied . | . . . . Relay Couplers Released . | . . . . Fabnet Peak Effective % . | . . . . Robots Rewired . | . . . . Allies Hacked . | . . . . Hacks Repelled . | . . . . Allies | -11 -10 -10 -10 -------- Run | Yrd Mat Min Sub Total Allies . | . . . . Largest Group . | . . . . Highest-Rated Group . | . . . . Highest-Rated Ally . | . . . . Total Orders 6 | . . 5 1 ROAM 2 | . . 2 . EXPLORE 2 | . . 1 1 RETURN 2 | . . 2 . Ally Attacks . | . . . . Total Damage . | . . . . Kills . | . . . . Allies Corrupted 1 | . . . 1 Allies Melted . | . . . . Intel | -11 -10 -10 -10 ------- Run | Yrd Mat Min Sub Robot Analysis Total . | . . . . Derelict Logs Recovered 4 | . . 2 2 Drone Launches 60 | . . 40 20 Drone Recoveries 56 | . . 40 16 Exploration | -11 -10 -10 -10 ------------- Run | Yrd Mat Min Sub Turns Passed 3379 | 1045 768 981 585 Spaces Moved 2107 | 484 559 649 415 Core 17 | 10 7 . . Treads . | . . . . Legs 1021 | 474 153 204 190 Wheels 225 | . . . 225 Hover 844 | . 399 445 . Flight . | . . . . Fastest Speed 50 | 50 56 56 110 Average Speed 103 | 118 80 104 114 Slowest Speed 200 | 120 200 190 120 Overloaded Moves . | . . . . Propulsion Burnouts . | . . . . Robots Hopped . | . . . . Cave-ins Triggered . | . . . . Exploration Rate (%) 63 | 48 57 101 48 Regions Visited 3 Branch Regions 2 Pre-discovered Areas 2 | . . 2 . Known Exits Taken 1 | . 1 . . Unknown Exits Taken 2 | 1 . 1 . Scrap Searched 4 | . . 1 3 Spaces Dug 2 | . . . 2 Terrain Destroyed 2 | . . . 2 Melee 2 | . . . 2 Projectile . | . . . . AOE . | . . . . Terrain Rammed . | . . . . Walls Destroyed . | . . . . Machines Disabled . | . . . . Actions | -11 -10 -10 -10 --------- Run | Yrd Mat Min Sub Total 3154 | 953 772 927 502 Wait 857 | 456 95 247 59 Move 2104 | 483 558 648 415 Hop . | . . . . Pick Up 39 | 8 22 6 3 Fast Attach 8 | . 5 . 3 Attach 17 | 6 6 3 2 Detach 1 | . 1 . . Swap 9 | . 5 2 2 Drop 26 | . 18 5 3 Fire 45 | . 45 . . Melee 48 | . 17 16 15 Ram . | . . . . Kick . | . . . . Crush . | . . . . Escape Stasis . | . . . . Rewire . | . . . . Trap . | . . . . Miscellaneous . | . . . . Route ------- -11/Scrapyard -10/Materials (discovered 3 exits: *Mat / *Min x2) -10/Mines (discovered 3 exits: *Mat x2 / [*Sub]) -10/Subcaves (discovered 2 exits: *Mat x2) History --------- Turn | Location | Event 6 | -11/Scrapyard | Discovered new exit (range 16) 899 | -11/Scrapyard | Assembled infested the area 1046 | -11/Scrapyard | Entered Materials 1047 | -10/Materials | Build established: Mutant 1239 | -10/Materials | Discovered new exit (range 14) 1251 | -10/Materials | Identified exit to Mines 1274 | -10/Materials | Discovered new exit (range 3) 1274 | -10/Materials | Identified exit to Materials 1794 | -10/Materials | Discovered exit to Mines (range 9) 1814 | -10/Materials | Entered Mines 1862 | -10/Mines | Discovered exit to Materials (range 7) 1896 | -10/Mines | Core integrity fell below 50% 1925 | -10/Mines | Learned location of Zion (-7) 1974 | -10/Mines | Discovered exit to Materials (range 7) 2033 | -10/Mines | Found the Drone Emporium 2035 | -10/Mines | Found Prototype Device 2038 | -10/Mines | Identified Sensor Drone Bay 2287 | -10/Mines | Received a Rocket Launcher from a helpful Derelict 2294 | -10/Mines | Discovered new exit (range 32) 2420 | -10/Mines | Found a damaged Exp. Sensor Array with a note attached 2426 | -10/Mines | Found Prototype Device 2623 | -10/Mines | A weapon hastily lodged in a ceiling crevice suddenly fell to the ground 2795 | -10/Mines | Entered Subcaves 2801 | -10/Subcaves | Learned Materials emergency access door positions 2907 | -10/Subcaves | Discovered new exit (range 49) 2911 | -10/Subcaves | Identified exit to Materials 2921 | -10/Subcaves | Ambushed by Subdwellers from Twisted Machinery 2946 | -10/Subcaves | Discovered exit to Materials (range 82) 2980 | -10/Subcaves | A swath of the cavern ceiling suddenly collapsed 3029 | -10/Subcaves | Learned Materials garrison access intel 3098 | -10/Subcaves | Core integrity fell below 20% 3133 | -10/Subcaves | Identified Exp. Sensor Array 3380 | -10/Subcaves | Destroyed by CH-6IX(R) with Subdweller Shrapnel Launcher Last Messages --------------- 03336_ System corrupted: Matter fused (-9). 03342_ CH-6IX(R) emerges from the Twisted Machinery. 03351_ ID,HZ7UP Z<>OAOLTMO 03361_ Lgt. Ion Engine destroyed. 03367_ Destroyed Disposable Heat Sink. 03367_ B0-S1Z(R) system corrupted by crushing effect. 03367_ B0-S1Z(R) knocked back. 03370_ B0-S1Z(R) suffers critical hit (Smash). 03370_ Destroyed Sub. Monowheel. 03370_ B0-S1Z(R) system corrupted by crushing effect. 03370_ B0-S1Z(R) knocked back. 03371_ B0-S1Z(R) system terminally corrupted. 03371_ Sub. Machine Gun fried. 03371_ Sub. Optics fried. 03373_ Acquired 41 matter. 03378_ CH-6IX(R) knocked back. 03380_ Sub. Monowheel destroyed. Map ----- +----------------------------------------------------+ | ?????????????????????????????????????????????????? | | ?????????????????????????????????????????????????? | | ?????????????????????????????????????????????????? | | ?????????????????????????????????????????????????? | | ?????????????????????????????????????????????????? | | ?????????????????????????????????????????????????? | | ?????????????????????????????????????????????????? | | ?????????????????????????????????????????????????? | | ?????????????????????????????????????????????????? | | ???????????????????????????#?????????????????????? | | ??????????????????????????" ##???????????????????? | | ???????????????????????? """ ???????????????????? | | ????????????????????##### #"????????????????????? | | ???????????????????## # ##???????????????????? | | ??????????????????## """" "##??????????????????? | | ??????????????????# """" ""##?????????????????? | | ?????????????????## """" """##????????????????? | | ????????????????## """" """""##???????????????? | | ???????????????## """ ##??????????????? | | ???????????????# """ #??????????????? | | ???????????????# ## #??????????????? | | ???????????????### ## ##??????????????? | | ?????????????????# ##???????????????? | | ?????????????????## R ###????????????????? | | ??????????????????# ##?###??????????????? | | ??????????????????### @ ;#? #??????????????? | | ?????????????##?###?# ;# #??????????????? | | ?????????????# ## ### #??????????????? | | ????????????## #??????????????? | | ???????????## % ## #??????????????? | | ???????????# #?????????????????? | | ???????????## "" #?????????????????? | | ???????????## " ###?????????????????? | | ???????????# " ##???????????????????? | | ???????????# " ####????????????????????? | | ???????????# " ;##???????????????????????? | | ???????????# #; ;; ;?????????????????????????? | | ??????###### #?; ;;;;;?????????????????????????? | | ??????# ####??# #####?????????????????????????? | | ??????# ##### #######???????????????????????? | | ???????# ## ## #####???????????????????? | | ???????# "# ##??????????????????? | | ##????##" " #??????????????????? | | ###### "" """ #?####?????????????? | | # # "" " ## ##?# #?????????????? | | "" ##?#?## #?????????????? | | "#??## #?????????????? | | " " ##### #?????????????? | | ## "##" "## #?????????????? | | ## "#### ## #?????????????? | +----------------------------------------------------+ Best States ------------- Heat Dissipation 25 Energy Generation 10 Energy Capacity 250 Matter Stores 300 Matter Capacity 300 Sight Range 16 Robot Scan Range 20 Terrain Scan Range 14 Terrain Scan Density 10 Resistance: KI 20 Resistance: TH 20 Resistance: EX 20 Resistance: EM 20 Resistance: I 20 Resistance: S 20 Resistance: P 20 Evasion (%) 55 Offensive Hacking 10 Item Schematics ----------------- None Robot Schematics ------------------ None Fabricated ------------ Nothing Alien Tech Used ----------------- None Achievements -------------- Release The Drones! Challenges ------------ None Game ------ Seed ProjectionBehemothMachine Manual? 0 Play Time 00:33:49 Cumulative 70.0 hours Start 2024.08.09 @ 20:31:55 End 2024.08.09 @ 21:06:53 Sessions 1 Manual Loads 0 Difficulty Adventurer Special Mode None Game No. 27 Rogue 18 Adventurer 9 Explorer 0 Win Type - Total 0 Types 0/0/0/0/0/0/0/0/0 Lore% 18 Gallery% 31 Achievement% 27 Wizard Run 0 Options --------- Layout 1 ASCII 0 Keyboard 0 Movement Mouse Keybinds 0 Fullscreen 1 Font 24/Smallcaps Map View 50x35 Zoom Use 0% Tactical HUD 1 Map Filters NONE Filters NONE Steam 1 RUN: 2dd32959-71ff-45ff-8c87-ed8bc4ada550